[Event "Titled Tuesday Blitz January 18 2022"]
[White "Przybylski, Wojciech"]
[Black "Halkias, Stelios"]
[WhiteFideId "1117599"]
[BlackFideId "4201809"]
[WhiteElo "2133"]
[BlackElo "2453"]
[Result "1/2-1/2"]
[Round "04"]
[TimeControl "180+1"]
[Date "2022.01.18"]
[WhiteClock "0:00:02"]
[BlackClock "0:00:16"]

1. e4 {[%clk 0:03:00]}  c5 {[%clk 0:02:58]} 2. Nf3 {[%clk 0:03:00]}  d6 {[%clk 0:02:58]} 3. Bb5+ {[%clk 0:02:59]}  Nd7 {[%clk 0:02:58]} 4. Ba4 {[%clk 0:02:57]}  Nf6 {[%clk 0:02:57]} 5. Nc3 {[%clk 0:02:56]}  a6 {[%clk 0:02:57]} 6. Bb3 {[%clk 0:02:50]}  e6 {[%clk 0:02:55]} 7. O-O {[%clk 0:02:50]}  b5 {[%clk 0:02:54]} 8. d3 {[%clk 0:02:50]}  Be7 {[%clk 0:02:54]} 9. a4 {[%clk 0:02:50]}  Rb8 {[%clk 0:02:52]} 10. Bf4 {[%clk 0:02:46]}  Qc7 {[%clk 0:02:48]} 11. Qe2 {[%clk 0:02:44]}  Ne5 {[%clk 0:02:45]} 12. axb5 {[%clk 0:02:42]}  axb5 {[%clk 0:02:45]} 13. Nxe5 {[%clk 0:02:37]}  dxe5 {[%clk 0:02:45]} 14. Bg3 {[%clk 0:02:36]}  h5 {[%clk 0:02:35]} 15. h3 {[%clk 0:02:35]}  h4 {[%clk 0:02:33]} 16. Bh2 {[%clk 0:02:35]}  Nh5 {[%clk 0:02:33]} 17. d4 {[%clk 0:02:20]}  cxd4 {[%clk 0:02:12]} 18. Nxb5 {[%clk 0:02:17]}  Qc5 {[%clk 0:02:11]} 19. Na3 {[%clk 0:00:51]}  Nf4 {[%clk 0:01:25]} 20. Bxf4 {[%clk 0:00:48]}  exf4 {[%clk 0:01:25]} 21. Ba4+ {[%clk 0:00:46]}  Kf8 {[%clk 0:01:25]} 22. Bb3 {[%clk 0:00:29]}  e5 {[%clk 0:01:18]} 23. Qc4 {[%clk 0:00:24]}  Qxc4 {[%clk 0:01:11]} 24. Nxc4 {[%clk 0:00:25]}  f6 {[%clk 0:00:59]} 25. Na5 {[%clk 0:00:21]}  Bd7 {[%clk 0:00:51]} 26. Rfb1 {[%clk 0:00:13]}  f3 {[%clk 0:00:51]} 27. Bd5 {[%clk 0:00:12]}  fxg2 {[%clk 0:00:48]} 28. Kxg2 {[%clk 0:00:12]}  Rc8 {[%clk 0:00:44]} 29. Nc4 {[%clk 0:00:11]}  Rb8 {[%clk 0:00:35]} 30. Ra7 {[%clk 0:00:08]}  Bb5 {[%clk 0:00:36]} 31. b3 {[%clk 0:00:08]}  g6 {[%clk 0:00:21]} 32. Rba1 {[%clk 0:00:08]}  Rh7 {[%clk 0:00:20]} 33. Ra8 {[%clk 0:00:08]}  Rxa8 {[%clk 0:00:21]} 34. Rxa8+ {[%clk 0:00:08]}  Kg7 {[%clk 0:00:21]} 35. Rg8+ {[%clk 0:00:07]}  Kh6 {[%clk 0:00:21]} 36. Rb8 {[%clk 0:00:07]}  Bxc4 {[%clk 0:00:20]} 37. Bxc4 {[%clk 0:00:06]}  Kg5 {[%clk 0:00:20]} 38. Rg8 {[%clk 0:00:05]}  Bb4 {[%clk 0:00:18]} 39. Be6 {[%clk 0:00:04]}  Bc3 {[%clk 0:00:17]} 40. Bf5 {[%clk 0:00:03]}  Rh6 {[%clk 0:00:17]} 41. Kf3 {[%clk 0:00:02]}  Bd2 {[%clk 0:00:17]} 42. Be6 {[%clk 0:00:01]}  Rh7 {[%clk 0:00:15]} 43. Bf5 {[%clk 0:00:02]}  Rh6 {[%clk 0:00:15]} 44. Be6 {[%clk 0:00:02]}  Bc3 {[%clk 0:00:16]} 45. Bf5 {[%clk 0:00:02]}  Bd2 {[%clk 0:00:16]} 1/2-1/2


[Site "https://www.chess.com"]

[Event "Titled Tuesday Blitz January 18 2022"]
[White "Pultinevicius, Paulius"]
[Black "Chigaev, Maksim"]
[WhiteFideId "12809390"]
[BlackFideId "4108116"]
[WhiteElo "2413"]
[BlackElo "2502"]
[Result "0-1"]
[Round "04"]
[TimeControl "180+1"]
[Date "2022.01.18"]
[WhiteClock "0:00:10"]
[BlackClock "0:00:39"]

1. d4 {[%clk 0:03:00]}  Nf6 {[%clk 0:02:59]} 2. c4 {[%clk 0:03:00]}  g6 {[%clk 0:02:57]} 3. Nc3 {[%clk 0:02:59]}  Bg7 {[%clk 0:02:56]} 4. e4 {[%clk 0:03:00]}  d6 {[%clk 0:02:57]} 5. Nf3 {[%clk 0:02:56]}  O-O {[%clk 0:02:57]} 6. Be2 {[%clk 0:02:54]}  e5 {[%clk 0:02:57]} 7. O-O {[%clk 0:02:55]}  exd4 {[%clk 0:02:57]} 8. Nxd4 {[%clk 0:02:56]}  Re8 {[%clk 0:02:58]} 9. f3 {[%clk 0:02:55]}  c6 {[%clk 0:02:58]} 10. Kh1 {[%clk 0:02:48]}  d5 {[%clk 0:02:58]} 11. exd5 {[%clk 0:02:44]}  cxd5 {[%clk 0:02:59]} 12. Bg5 {[%clk 0:02:41]}  Nc6 {[%clk 0:02:47]} 13. Ndb5 {[%clk 0:01:37]}  a6 {[%clk 0:02:41]} 14. Na3 {[%clk 0:01:18]}  dxc4 {[%clk 0:02:33]} 15. Nxc4 {[%clk 0:01:11]}  Be6 {[%clk 0:02:27]} 16. Nd6 {[%clk 0:01:07]}  Re7 {[%clk 0:02:22]} 17. Nce4 {[%clk 0:01:07]}  Rd7 {[%clk 0:02:05]} 18. Qd3 {[%clk 0:00:21]}  h6 {[%clk 0:01:33]} 19. Bxf6 {[%clk 0:00:18]}  Bxf6 {[%clk 0:01:33]} 20. Nxf6+ {[%clk 0:00:17]}  Qxf6 {[%clk 0:01:34]} 21. Rad1 {[%clk 0:00:17]}  Qxb2 {[%clk 0:01:25]} 22. Rd2 {[%clk 0:00:16]}  Qb4 {[%clk 0:01:07]} 23. a3 {[%clk 0:00:14]}  Qf4 {[%clk 0:01:03]} 24. Rfd1 {[%clk 0:00:12]}  Rad8 {[%clk 0:01:02]} 25. g3 {[%clk 0:00:10]}  Qe5 {[%clk 0:00:52]} 26. f4 {[%clk 0:00:10]}  Qc5 {[%clk 0:00:40]} 27. Bf3 {[%clk 0:00:11]}  Rxd6 {[%clk 0:00:38]} 28. Qxd6 {[%clk 0:00:10]}  Rxd6 {[%clk 0:00:39]} 29. Rxd6 {[%clk 0:00:10]}  Qxa3 {[%clk 0:00:39]} 0-1


[Site "https://www.chess.com"]

[Event "Titled Tuesday Blitz January 18 2022"]
[White "Shyaamnikhil P"]
[Black "Farakhov, Rafail"]
[WhiteFideId "5024218"]
[BlackFideId "4137574"]
[WhiteElo "2292"]
[BlackElo "2403"]
[Result "1-0"]
[Round "04"]
[TimeControl "180+1"]
[Date "2022.01.18"]
[WhiteClock "0:00:56"]
[BlackClock "0:00:02"]

1. Nf3 {[%clk 0:03:00]}  Nf6 {[%clk 0:02:59]} 2. g3 {[%clk 0:03:01]}  d5 {[%clk 0:03:00]} 3. Bg2 {[%clk 0:03:01]}  c6 {[%clk 0:03:00]} 4. O-O {[%clk 0:03:01]}  Bg4 {[%clk 0:03:01]} 5. d3 {[%clk 0:03:02]}  Nbd7 {[%clk 0:03:00]} 6. Nbd2 {[%clk 0:03:02]}  e5 {[%clk 0:03:00]} 7. e4 {[%clk 0:03:02]}  dxe4 {[%clk 0:03:01]} 8. dxe4 {[%clk 0:03:02]}  Bc5 {[%clk 0:03:01]} 9. h3 {[%clk 0:03:00]}  Bh5 {[%clk 0:03:01]} 10. Qe1 {[%clk 0:03:00]}  O-O {[%clk 0:03:00]} 11. Nh4 {[%clk 0:02:59]}  Re8 {[%clk 0:02:50]} 12. Nc4 {[%clk 0:02:57]}  Qc7 {[%clk 0:02:47]} 13. b4 {[%clk 0:02:57]}  Bf8 {[%clk 0:02:41]} 14. a4 {[%clk 0:02:46]}  Nb6 {[%clk 0:02:28]} 15. Ne3 {[%clk 0:02:46]}  Rad8 {[%clk 0:02:22]} 16. Bb2 {[%clk 0:02:45]}  Bg6 {[%clk 0:02:19]} 17. a5 {[%clk 0:02:44]}  Nc8 {[%clk 0:02:18]} 18. Nc4 {[%clk 0:02:30]}  b5 {[%clk 0:02:04]} 19. axb6 {[%clk 0:02:27]}  axb6 {[%clk 0:02:04]} 20. Nxg6 {[%clk 0:02:25]}  hxg6 {[%clk 0:02:03]} 21. Qc3 {[%clk 0:02:20]}  Nd6 {[%clk 0:01:33]} 22. Nxe5 {[%clk 0:02:11]}  Ndxe4 {[%clk 0:01:32]} 23. Qxc6 {[%clk 0:02:10]}  Qxc6 {[%clk 0:00:56]} 24. Nxc6 {[%clk 0:02:11]}  Rd2 {[%clk 0:00:57]} 25. Rac1 {[%clk 0:02:03]}  Rc8 {[%clk 0:00:55]} 26. b5 {[%clk 0:01:58]}  Bc5 {[%clk 0:00:55]} 27. Bxf6 {[%clk 0:01:55]}  Nxf6 {[%clk 0:00:19]} 28. Kh2 {[%clk 0:01:55]}  Re8 {[%clk 0:00:18]} 29. Bf3 {[%clk 0:01:29]}  Bxf2 {[%clk 0:00:16]} 30. Rfd1 {[%clk 0:01:29]}  Rxd1 {[%clk 0:00:14]} 31. Rxd1 {[%clk 0:01:29]}  Bc5 {[%clk 0:00:15]} 32. Kg2 {[%clk 0:01:24]}  Re3 {[%clk 0:00:14]} 33. Rd3 {[%clk 0:01:21]}  Re1 {[%clk 0:00:13]} 34. Rd1 {[%clk 0:01:21]}  Re3 {[%clk 0:00:13]} 35. h4 {[%clk 0:01:18]}  Rc3 {[%clk 0:00:12]} 36. Rd2 {[%clk 0:01:15]}  Kh7 {[%clk 0:00:12]} 37. Ne5 {[%clk 0:01:14]}  Kg8 {[%clk 0:00:07]} 38. Rd8+ {[%clk 0:01:10]}  Bf8 {[%clk 0:00:07]} 39. g4 {[%clk 0:00:59]}  Rxc2+ {[%clk 0:00:06]} 40. Kg3 {[%clk 0:00:59]}  Rc5 {[%clk 0:00:07]} 41. Kf4 {[%clk 0:01:00]}  Rxb5 {[%clk 0:00:04]} 42. g5 {[%clk 0:01:00]}  Rb4+ {[%clk 0:00:05]} 43. Kg3 {[%clk 0:00:58]}  Nh7 {[%clk 0:00:02]} 44. Bd5 {[%clk 0:00:56]} 1-0


[Site "https://www.chess.com"]

[Event "Titled Tuesday Blitz January 18 2022"]
[White "Srihari L R"]
[Black "Prohorov, Olexandr"]
[WhiteFideId "46617116"]
[BlackFideId "14105578"]
[WhiteElo "2121"]
[BlackElo "1993"]
[Result "0-1"]
[Round "04"]
[TimeControl "180+1"]
[Date "2022.01.18"]
[WhiteClock "0:00:02"]
[BlackClock "0:00:10"]

1. d4 {[%clk 0:02:33]}  g6 {[%clk 0:02:58]} 2. Nf3 {[%clk 0:02:32]}  Bg7 {[%clk 0:02:58]} 3. b3 {[%clk 0:02:30]}  c5 {[%clk 0:02:54]} 4. Bb2 {[%clk 0:02:29]}  Nc6 {[%clk 0:02:51]} 5. e3 {[%clk 0:02:27]}  cxd4 {[%clk 0:02:47]} 6. exd4 {[%clk 0:02:26]}  d5 {[%clk 0:02:48]} 7. Nbd2 {[%clk 0:02:25]}  Nf6 {[%clk 0:02:48]} 8. a3 {[%clk 0:02:22]}  O-O {[%clk 0:02:47]} 9. Bd3 {[%clk 0:02:22]}  Qc7 {[%clk 0:02:17]} 10. O-O {[%clk 0:02:14]}  Bf5 {[%clk 0:02:17]} 11. Qe2 {[%clk 0:02:14]}  Rfe8 {[%clk 0:02:15]} 12. Ne5 {[%clk 0:02:13]}  Bxd3 {[%clk 0:02:06]} 13. Qxd3 {[%clk 0:01:59]}  Rac8 {[%clk 0:02:03]} 14. Rac1 {[%clk 0:01:57]}  e6 {[%clk 0:01:45]} 15. f4 {[%clk 0:01:52]}  Qb6 {[%clk 0:01:35]} 16. Kh1 {[%clk 0:01:46]}  a5 {[%clk 0:00:57]} 17. Rb1 {[%clk 0:01:23]}  a4 {[%clk 0:00:51]} 18. bxa4 {[%clk 0:01:22]}  Qa7 {[%clk 0:00:39]} 19. Ba1 {[%clk 0:01:07]}  Bf8 {[%clk 0:00:34]} 20. h3 {[%clk 0:00:50]}  Rc7 {[%clk 0:00:32]} 21. Qb5 {[%clk 0:00:37]}  Bxa3 {[%clk 0:00:27]} 22. Ndf3 {[%clk 0:00:33]}  Bd6 {[%clk 0:00:22]} 23. Ng5 {[%clk 0:00:32]}  Nh5 {[%clk 0:00:20]} 24. Rf3 {[%clk 0:00:19]}  f6 {[%clk 0:00:19]} 25. Ng4 {[%clk 0:00:10]}  fxg5 {[%clk 0:00:16]} 26. fxg5 {[%clk 0:00:11]}  Rf8 {[%clk 0:00:16]} 27. Rbf1 {[%clk 0:00:10]}  Rxf3 {[%clk 0:00:15]} 28. Rxf3 {[%clk 0:00:04]}  Qb8 {[%clk 0:00:14]} 29. c4 {[%clk 0:00:04]}  Na7 {[%clk 0:00:11]} 30. Qb3 {[%clk 0:00:03]}  dxc4 {[%clk 0:00:10]} 31. d5 {[%clk 0:00:03]}  Ng3+ {[%clk 0:00:10]} 32. Rxg3 {[%clk 0:00:03]}  cxb3 {[%clk 0:00:10]} 33. Rf3 {[%clk 0:00:02]}  e5 {[%clk 0:00:09]} 34. Nh6+ {[%clk 0:00:02]}  Kh8 {[%clk 0:00:09]} 35. Rf6 {[%clk 0:00:02]}  b2 {[%clk 0:00:10]} 36. Bxb2 {[%clk 0:00:02]}  Qd8 {[%clk 0:00:10]} 0-1


[Site "https://www.chess.com"]

[Event "Titled Tuesday Blitz January 18 2022"]
[White "Tabatabaei, M. Amin"]
[Black "Costachi, Mihnea"]
[WhiteFideId "12521213"]
[BlackFideId "1217518"]
[WhiteElo "2585"]
[BlackElo "2464"]
[Result "1-0"]
[Round "04"]
[TimeControl "180+1"]
[Date "2022.01.18"]
[WhiteClock "0:01:38"]
[BlackClock "0:01:16"]

1. d4 {[%clk 0:03:00]}  Nf6 {[%clk 0:02:58]} 2. Nf3 {[%clk 0:03:01]}  d5 {[%clk 0:02:56]} 3. Bf4 {[%clk 0:03:01]}  c6 {[%clk 0:02:55]} 4. e3 {[%clk 0:03:01]}  g6 {[%clk 0:02:55]} 5. c3 {[%clk 0:02:58]}  Bg7 {[%clk 0:02:55]} 6. Nbd2 {[%clk 0:02:59]}  O-O {[%clk 0:02:56]} 7. h3 {[%clk 0:03:00]}  Bf5 {[%clk 0:02:56]} 8. g4 {[%clk 0:02:59]}  Be4 {[%clk 0:02:55]} 9. Nxe4 {[%clk 0:02:58]}  Nxe4 {[%clk 0:02:54]} 10. Bd3 {[%clk 0:02:57]}  Nd7 {[%clk 0:02:53]} 11. Qc2 {[%clk 0:02:54]}  Nd6 {[%clk 0:02:47]} 12. h4 {[%clk 0:02:53]}  Nf6 {[%clk 0:02:40]} 13. Ne5 {[%clk 0:02:48]}  Nd7 {[%clk 0:02:30]} 14. h5 {[%clk 0:02:44]}  Nxe5 {[%clk 0:02:30]} 15. dxe5 {[%clk 0:02:39]}  Nc4 {[%clk 0:02:30]} 16. hxg6 {[%clk 0:02:32]}  Nxe5 {[%clk 0:01:53]} 17. gxf7+ {[%clk 0:02:06]}  Rxf7 {[%clk 0:01:52]} 18. Bxh7+ {[%clk 0:02:05]}  Kf8 {[%clk 0:01:52]} 19. Bxe5 {[%clk 0:02:06]}  Bxe5 {[%clk 0:01:52]} 20. Bg6 {[%clk 0:02:06]}  Rg7 {[%clk 0:01:15]} 21. Qf5+ {[%clk 0:01:51]}  Bf6 {[%clk 0:01:15]} 22. g5 {[%clk 0:01:48]}  e6 {[%clk 0:01:14]} 23. Rh8+ {[%clk 0:01:43]}  Rg8 {[%clk 0:01:14]} 24. Rxg8+ {[%clk 0:01:41]}  Kxg8 {[%clk 0:01:15]} 25. Qxe6+ {[%clk 0:01:38]}  Kg7 {[%clk 0:01:15]} 26. Qf7+ {[%clk 0:01:38]}  Kh8 {[%clk 0:01:16]} 27. Qh7# {[%clk 0:01:38]} 1-0


[Site "https://www.chess.com"]

[Event "Titled Tuesday Blitz January 18 2022"]
[White "Taichman, Ori"]
[Black "Lugovskoy, Maxim"]
[WhiteFideId "2804069"]
[BlackFideId "24126454"]
[WhiteElo "2227"]
[BlackElo "2444"]
[Result "1-0"]
[Round "04"]
[TimeControl "180+1"]
[Date "2022.01.18"]
[WhiteClock "0:00:58"]
[BlackClock "0:00:20"]

1. e4 {[%clk 0:03:00]}  e6 {[%clk 0:02:59]} 2. d4 {[%clk 0:02:58]}  d5 {[%clk 0:02:59]} 3. Nc3 {[%clk 0:02:58]}  Bb4 {[%clk 0:02:59]} 4. e5 {[%clk 0:02:58]}  c5 {[%clk 0:02:59]} 5. Bd2 {[%clk 0:02:59]}  Ne7 {[%clk 0:02:59]} 6. dxc5 {[%clk 0:02:58]}  Nbc6 {[%clk 0:02:58]} 7. Qg4 {[%clk 0:02:58]}  Ng6 {[%clk 0:02:57]} 8. O-O-O {[%clk 0:02:45]}  Bxc5 {[%clk 0:02:52]} 9. Nf3 {[%clk 0:02:43]}  a6 {[%clk 0:02:45]} 10. h4 {[%clk 0:02:39]}  h5 {[%clk 0:02:45]} 11. Qg3 {[%clk 0:02:40]}  b5 {[%clk 0:02:43]} 12. Bd3 {[%clk 0:02:40]}  Nce7 {[%clk 0:02:40]} 13. Ne2 {[%clk 0:02:36]}  Qb6 {[%clk 0:02:38]} 14. Rhf1 {[%clk 0:02:34]}  Bd7 {[%clk 0:02:37]} 15. Nf4 {[%clk 0:02:34]}  O-O-O {[%clk 0:02:37]} 16. Nxg6 {[%clk 0:02:33]}  Nxg6 {[%clk 0:02:38]} 17. Bxg6 {[%clk 0:02:34]}  fxg6 {[%clk 0:02:39]} 18. Qxg6 {[%clk 0:02:34]}  Kb8 {[%clk 0:02:36]} 19. Ng5 {[%clk 0:02:27]}  Rc8 {[%clk 0:02:30]} 20. Qxg7 {[%clk 0:02:24]}  Rhd8 {[%clk 0:02:25]} 21. Kb1 {[%clk 0:02:07]}  b4 {[%clk 0:02:24]} 22. Qg6 {[%clk 0:02:03]}  Bd4 {[%clk 0:02:13]} 23. Nf7 {[%clk 0:01:58]}  Rg8 {[%clk 0:02:12]} 24. Qxh5 {[%clk 0:01:56]}  Bb5 {[%clk 0:01:39]} 25. Nd6 {[%clk 0:01:43]}  Bxf1 {[%clk 0:01:15]} 26. Nxc8 {[%clk 0:01:43]}  Rxc8 {[%clk 0:01:13]} 27. Rxf1 {[%clk 0:01:42]}  Bxb2 {[%clk 0:01:11]} 28. Kxb2 {[%clk 0:01:15]}  Qd4+ {[%clk 0:01:11]} 29. Kb1 {[%clk 0:01:16]}  Qxd2 {[%clk 0:01:10]} 30. Qd1 {[%clk 0:01:16]}  Qc3 {[%clk 0:01:09]} 31. Qd3 {[%clk 0:01:09]}  Qc6 {[%clk 0:00:59]} 32. h5 {[%clk 0:01:04]}  a5 {[%clk 0:00:40]} 33. h6 {[%clk 0:01:04]}  a4 {[%clk 0:00:40]} 34. h7 {[%clk 0:01:03]}  Ka7 {[%clk 0:00:30]} 35. Rh1 {[%clk 0:01:01]}  Rh8 {[%clk 0:00:25]} 36. Qd4+ {[%clk 0:01:00]}  Ka6 {[%clk 0:00:22]} 37. Qxb4 {[%clk 0:00:57]}  Qc7 {[%clk 0:00:21]} 38. Qd6+ {[%clk 0:00:56]}  Qxd6 {[%clk 0:00:20]} 39. exd6 {[%clk 0:00:57]}  Kb6 {[%clk 0:00:20]} 40. g4 {[%clk 0:00:58]} 1-0


[Site "https://www.chess.com"]

[Event "Titled Tuesday Blitz January 18 2022"]
[White "Tsyhanchuk, Stanislav"]
[Black "Zhigalko, Sergei"]
[WhiteFideId "13505130"]
[BlackFideId "13502956"]
[WhiteElo "2078"]
[BlackElo "2662"]
[Result "0-1"]
[Round "04"]
[TimeControl "180+1"]
[Date "2022.01.18"]
[WhiteClock "0:00:03"]
[BlackClock "0:00:04"]

1. e4 {[%clk 0:03:00]}  c5 {[%clk 0:02:59]} 2. Nf3 {[%clk 0:03:00]}  Nc6 {[%clk 0:03:00]} 3. d4 {[%clk 0:03:01]}  cxd4 {[%clk 0:03:00]} 4. Nxd4 {[%clk 0:03:01]}  Nf6 {[%clk 0:03:00]} 5. Nc3 {[%clk 0:03:01]}  e5 {[%clk 0:03:00]} 6. Ndb5 {[%clk 0:03:02]}  d6 {[%clk 0:03:00]} 7. Bg5 {[%clk 0:03:02]}  a6 {[%clk 0:03:00]} 8. Na3 {[%clk 0:03:02]}  b5 {[%clk 0:02:58]} 9. Nd5 {[%clk 0:03:02]}  Be7 {[%clk 0:02:56]} 10. Bxf6 {[%clk 0:03:03]}  Bxf6 {[%clk 0:02:56]} 11. c4 {[%clk 0:03:03]}  b4 {[%clk 0:02:56]} 12. Nc2 {[%clk 0:03:04]}  O-O {[%clk 0:02:56]} 13. g3 {[%clk 0:03:02]}  a5 {[%clk 0:02:55]} 14. Bg2 {[%clk 0:03:02]}  Bg5 {[%clk 0:02:54]} 15. O-O {[%clk 0:03:01]}  Ne7 {[%clk 0:02:46]} 16. f4 {[%clk 0:03:00]}  Bh6 {[%clk 0:02:38]} 17. Nce3 {[%clk 0:02:57]}  Nxd5 {[%clk 0:02:37]} 18. Nxd5 {[%clk 0:02:58]}  Be6 {[%clk 0:02:11]} 19. Qh5 {[%clk 0:02:46]}  Bxd5 {[%clk 0:02:04]} 20. cxd5 {[%clk 0:02:47]}  exf4 {[%clk 0:01:24]} 21. gxf4 {[%clk 0:02:46]}  Rc8 {[%clk 0:01:23]} 22. e5 {[%clk 0:02:43]}  Rc2 {[%clk 0:01:16]} 23. e6 {[%clk 0:02:07]}  Qf6 {[%clk 0:00:59]} 24. Rae1 {[%clk 0:01:56]}  Rxb2 {[%clk 0:00:48]} 25. e7 {[%clk 0:01:28]}  Re8 {[%clk 0:00:48]} 26. Qg4 {[%clk 0:01:28]}  Qg6 {[%clk 0:00:23]} 27. Bh3 {[%clk 0:01:12]}  f5 {[%clk 0:00:22]} 28. Qg3 {[%clk 0:00:29]}  Kf7 {[%clk 0:00:17]} 29. Re6 {[%clk 0:00:12]}  Qxg3+ {[%clk 0:00:14]} 30. hxg3 {[%clk 0:00:13]}  Rxe7 {[%clk 0:00:08]} 31. Bxf5 {[%clk 0:00:13]}  g6 {[%clk 0:00:06]} 32. Rfe1 {[%clk 0:00:06]}  Rxe6 {[%clk 0:00:04]} 33. Bxe6+ {[%clk 0:00:06]}  Kf8 {[%clk 0:00:04]} 34. Rc1 {[%clk 0:00:06]}  Rxa2 {[%clk 0:00:02]} 35. Rc8+ {[%clk 0:00:07]}  Ke7 {[%clk 0:00:02]} 36. Rc7+ {[%clk 0:00:07]}  Kf8 {[%clk 0:00:02]} 37. Rf7+ {[%clk 0:00:04]}  Ke8 {[%clk 0:00:02]} 38. Rxh7 {[%clk 0:00:03]}  b3 {[%clk 0:00:02]} 39. Rh8+ {[%clk 0:00:01]}  Ke7 {[%clk 0:00:02]} 40. Rh7+ {[%clk 0:00:02]}  Kf8 {[%clk 0:00:02]} 41. Rf7+ {[%clk 0:00:02]}  Ke8 {[%clk 0:00:02]} 42. Rb7 {[%clk 0:00:02]}  b2 {[%clk 0:00:02]} 43. Bf7+ {[%clk 0:00:02]}  Kf8 {[%clk 0:00:02]} 44. Bxg6 {[%clk 0:00:02]}  Bg7 {[%clk 0:00:02]} 45. f5 {[%clk 0:00:02]}  Be5 {[%clk 0:00:02]} 46. g4 {[%clk 0:00:02]}  Bf6 {[%clk 0:00:02]} 47. g5 {[%clk 0:00:02]}  Bxg5 {[%clk 0:00:02]} 48. f6 {[%clk 0:00:03]}  Bxf6 {[%clk 0:00:02]} 49. Rf7+ {[%clk 0:00:03]}  Kg8 {[%clk 0:00:02]} 50. Rxf6 {[%clk 0:00:04]}  Kg7 {[%clk 0:00:02]} 51. Rxd6 {[%clk 0:00:04]}  a4 {[%clk 0:00:03]} 52. Rb6 {[%clk 0:00:04]}  a3 {[%clk 0:00:03]} 53. d6 {[%clk 0:00:03]}  Ra1+ {[%clk 0:00:03]} 54. Kf2 {[%clk 0:00:03]}  Rd1 {[%clk 0:00:03]} 55. Ra6 {[%clk 0:00:02]}  Kxg6 {[%clk 0:00:03]} 56. d7+ {[%clk 0:00:02]}  Kg7 {[%clk 0:00:03]} 57. Ra7 {[%clk 0:00:02]}  Kf6 {[%clk 0:00:03]} 58. Rxa3 {[%clk 0:00:01]}  b1=Q {[%clk 0:00:03]} 59. Rf3+ {[%clk 0:00:02]}  Ke7 {[%clk 0:00:04]} 60. d8=Q+ {[%clk 0:00:03]}  Kxd8 {[%clk 0:00:04]} 0-1


[Site "https://www.chess.com"]

[Event "Titled Tuesday Blitz January 18 2022"]
[White "Vazquez, Facundo"]
[Black "Soderstrom, Adrian"]
[WhiteFideId "3007669"]
[BlackFideId "1745786"]
[WhiteElo "1984"]
[BlackElo "2107"]
[Result "1-0"]
[Round "04"]
[TimeControl "180+1"]
[Date "2022.01.18"]
[WhiteClock "0:00:14"]
[BlackClock "0:00:03"]

1. d4 {[%clk 0:03:00]}  Nf6 {[%clk 0:02:55]} 2. c4 {[%clk 0:02:55]}  g6 {[%clk 0:02:54]} 3. Nf3 {[%clk 0:02:54]}  Bg7 {[%clk 0:02:52]} 4. Nc3 {[%clk 0:02:54]}  O-O {[%clk 0:02:51]} 5. g3 {[%clk 0:02:53]}  d5 {[%clk 0:02:50]} 6. Bg2 {[%clk 0:02:45]}  Nc6 {[%clk 0:02:49]} 7. cxd5 {[%clk 0:02:43]}  Nxd5 {[%clk 0:02:50]} 8. O-O {[%clk 0:02:43]}  e5 {[%clk 0:02:49]} 9. Nxd5 {[%clk 0:02:40]}  e4 {[%clk 0:02:49]} 10. Nd2 {[%clk 0:02:35]}  Qxd5 {[%clk 0:02:48]} 11. e3 {[%clk 0:02:32]}  f5 {[%clk 0:02:46]} 12. Qb3 {[%clk 0:02:32]}  Be6 {[%clk 0:02:27]} 13. Qxd5 {[%clk 0:02:32]}  Bxd5 {[%clk 0:02:28]} 14. a3 {[%clk 0:02:32]}  a5 {[%clk 0:02:27]} 15. b3 {[%clk 0:02:31]}  Ra6 {[%clk 0:02:08]} 16. Bb2 {[%clk 0:02:30]}  Rb6 {[%clk 0:02:08]} 17. Rfb1 {[%clk 0:02:28]}  Bxb3 {[%clk 0:02:02]} 18. Bc3 {[%clk 0:02:27]}  Bd5 {[%clk 0:01:59]} 19. Bf1 {[%clk 0:02:26]}  Rxb1 {[%clk 0:01:55]} 20. Rxb1 {[%clk 0:02:25]}  b6 {[%clk 0:01:55]} 21. Bb5 {[%clk 0:02:18]}  Ne7 {[%clk 0:01:54]} 22. Nc4 {[%clk 0:02:15]}  c6 {[%clk 0:01:42]} 23. Nxb6 {[%clk 0:02:14]}  cxb5 {[%clk 0:01:41]} 24. Rxb5 {[%clk 0:02:15]}  Bf7 {[%clk 0:01:32]} 25. Bxa5 {[%clk 0:02:10]}  Rb8 {[%clk 0:01:29]} 26. a4 {[%clk 0:01:59]}  Nc6 {[%clk 0:01:24]} 27. Bc3 {[%clk 0:01:53]}  Be8 {[%clk 0:01:13]} 28. Rb2 {[%clk 0:01:51]}  Rb7 {[%clk 0:01:09]} 29. a5 {[%clk 0:01:49]}  Ra7 {[%clk 0:01:08]} 30. Nc4 {[%clk 0:01:46]}  Bf7 {[%clk 0:01:06]} 31. Nd6 {[%clk 0:01:43]}  Nxa5 {[%clk 0:00:53]} 32. Rb8+ {[%clk 0:01:37]}  Bf8 {[%clk 0:00:53]} 33. Nxf5 {[%clk 0:01:28]}  Nc6 {[%clk 0:00:48]} 34. Nh6+ {[%clk 0:01:23]}  Kg7 {[%clk 0:00:47]} 35. d5+ {[%clk 0:01:22]}  Kxh6 {[%clk 0:00:47]} 36. Rxf8 {[%clk 0:01:20]}  Bxd5 {[%clk 0:00:46]} 37. Kg2 {[%clk 0:01:18]}  Rf7 {[%clk 0:00:37]} 38. Rh8 {[%clk 0:01:15]}  Be6 {[%clk 0:00:35]} 39. h3 {[%clk 0:01:13]}  Ne7 {[%clk 0:00:35]} 40. g4 {[%clk 0:01:11]}  g5 {[%clk 0:00:35]} 41. Re8 {[%clk 0:01:09]}  Kg6 {[%clk 0:00:33]} 42. Bb4 {[%clk 0:01:07]}  Kf6 {[%clk 0:00:30]} 43. Bc3+ {[%clk 0:01:07]}  Kg6 {[%clk 0:00:27]} 44. Bb4 {[%clk 0:01:02]}  Kf6 {[%clk 0:00:10]} 45. h4 {[%clk 0:00:50]}  Nd5 {[%clk 0:00:09]} 46. hxg5+ {[%clk 0:00:46]}  Kxg5 {[%clk 0:00:10]} 47. Rxe6 {[%clk 0:00:44]}  Nxb4 {[%clk 0:00:10]} 48. Rxe4 {[%clk 0:00:43]}  Nc6 {[%clk 0:00:10]} 49. Kg3 {[%clk 0:00:40]}  Ne7 {[%clk 0:00:10]} 50. Re6 {[%clk 0:00:39]}  Ng6 {[%clk 0:00:03]} 51. Ra6 {[%clk 0:00:36]}  Kh6 {[%clk 0:00:02]} 52. f4 {[%clk 0:00:34]}  Kg7 {[%clk 0:00:03]} 53. g5 {[%clk 0:00:33]}  Ne7 {[%clk 0:00:02]} 54. e4 {[%clk 0:00:31]}  Nc8 {[%clk 0:00:02]} 55. f5 {[%clk 0:00:30]}  Ne7 {[%clk 0:00:02]} 56. f6+ {[%clk 0:00:28]}  Kh8 {[%clk 0:00:02]} 57. e5 {[%clk 0:00:23]}  Ng6 {[%clk 0:00:02]} 58. e6 {[%clk 0:00:21]}  Rf8 {[%clk 0:00:02]} 59. Kg4 {[%clk 0:00:18]}  Re8 {[%clk 0:00:02]} 60. Rd6 {[%clk 0:00:16]}  Rb8 {[%clk 0:00:02]} 61. e7 {[%clk 0:00:15]}  Kg8 {[%clk 0:00:03]} 62. Rd8+ {[%clk 0:00:14]} 1-0


[Site "https://www.chess.com"]